[Event "KNSB Bekerfinale"]
[Site "Haarlem, Netherlands"]
[Date "????.??.??"]
[Round "2.6"]
[White "Pijpers, Arthur"]
[Black "Pham, Khoi"]
[Result "1/2-1/2"]
[TimeControl "100 minutes + increment 10 seconds"]
[WhiteTitle "IM"]
[BlackTitle "IM"]
[WhiteFideId "1019554"]
[BlackFideId "1054988"]
[WhiteElo "2456"]
[BlackElo "2385"]

1. e4 {[%clk 01:40:17]} {[%emt 00:00:02]} e5 {[%clk 01:40:12]} {[%emt
00:00:09]} 2. Nf3 {[%clk 01:40:21]} {[%emt 00:00:05]} Nc6 {[%clk 01:40:16]}
{[%emt 00:00:06]} 3. Bb5 {[%clk 01:40:26]} {[%emt 00:00:05]} a6 {[%clk
01:40:20]} {[%emt 00:00:06]} 4. Ba4 {[%clk 01:40:32]} {[%emt 00:00:04]} Nf6
{[%clk 01:40:22]} {[%emt 00:00:08]} 5. O-O {[%clk 01:40:36]} {[%emt 00:00:06]}
Be7 {[%clk 01:40:26]} {[%emt 00:00:06]} 6. Re1 {[%clk 01:40:30]} {[%emt
00:00:16]} b5 {[%clk 01:40:15]} {[%emt 00:00:22]} 7. Bb3 {[%clk 01:40:36]}
{[%emt 00:00:05]} d6 {[%clk 01:40:12]} {[%emt 00:00:13]} 8. c3 {[%clk
01:40:40]} {[%emt 00:00:06]} O-O {[%clk 01:39:46]} {[%emt 00:00:35]} 9. h3
{[%clk 01:40:45]} {[%emt 00:00:05]} Na5 {[%clk 01:39:46]} {[%emt 00:00:11]} 10.
Bc2 {[%clk 01:40:48]} {[%emt 00:00:07]} c5 {[%clk 01:39:51]} {[%emt 00:00:04]}
11. d4 {[%clk 01:40:47]} {[%emt 00:00:10]} Qc7 {[%clk 01:39:52]} {[%emt
00:00:09]} 12. d5 {[%clk 01:40:40]} {[%emt 00:00:18]} Nc4 {[%clk 01:39:06]}
{[%emt 00:00:56]} 13. a4 {[%clk 01:38:38]} {[%emt 00:02:12]} Nb6 {[%clk
01:32:19]} {[%emt 00:06:57]} 14. a5 {[%clk 01:36:40]} {[%emt 00:02:08]} Nbd7
{[%clk 01:29:25]} {[%emt 00:03:03]} 15. c4 {[%clk 01:34:27]} {[%emt 00:02:23]}
Rb8 {[%clk 01:26:45]} {[%emt 00:02:51]} 16. Nc3 {[%clk 01:30:27]} {[%emt
00:04:10]} Ne8 {[%clk 01:24:46]} {[%emt 00:02:09]} 17. Bd3 {[%clk 01:25:22]}
{[%emt 00:05:15]} b4 {[%clk 01:23:20]} {[%emt 00:01:36]} 18. Ne2 {[%clk
01:25:27]} {[%emt 00:00:05]} g6 {[%clk 01:22:22]} {[%emt 00:01:07]} 19. g4
{[%clk 01:25:17]} {[%emt 00:00:20]} Ng7 {[%clk 01:21:20]} {[%emt 00:01:13]} 20.
Ng3 {[%clk 01:25:20]} {[%emt 00:00:08]} Nf6 {[%clk 01:19:28]} {[%emt 00:02:01]}
21. Bh6 {[%clk 01:22:01]} {[%emt 00:03:28]} Kh8 {[%clk 01:15:49]} {[%emt
00:03:49]} 22. Nh2 {[%clk 00:58:11]} {[%emt 00:24:00]} Ng8 {[%clk 01:14:19]}
{[%emt 00:01:40]} 23. Be3 {[%clk 00:56:01]} {[%emt 00:02:20]} f5 {[%clk
01:09:13]} {[%emt 00:05:15]} 24. exf5 {[%clk 00:55:21]} {[%emt 00:00:51]} gxf5
{[%clk 01:09:21]} {[%emt 00:00:02]} 25. gxf5 {[%clk 00:55:07]} {[%emt
00:00:24]} Nxf5 {[%clk 01:09:03]} {[%emt 00:00:27]} 26. Ng4 {[%clk 00:47:29]}
{[%emt 00:07:48]} Nxe3 {[%clk 01:05:31]} {[%emt 00:03:42]} 27. Nxe3 {[%clk
00:47:22]} {[%emt 00:00:18]} Bg5 {[%clk 00:59:21]} {[%emt 00:06:19]} 28. Qh5
{[%clk 00:43:15]} {[%emt 00:04:18]} Qg7 {[%clk 00:57:03]} {[%emt 00:02:28]} 29.
Nef5 {[%clk 00:39:40]} {[%emt 00:03:45]} Bxf5 {[%clk 00:55:07]} {[%emt
00:02:06]} 30. Nxf5 {[%clk 00:39:45]} {[%emt 00:00:05]} Rxf5 {[%clk 00:54:33]}
{[%emt 00:00:44]} 31. Bxf5 {[%clk 00:39:50]} {[%emt 00:00:05]} Rf8 {[%clk
00:53:40]} {[%emt 00:01:03]} 32. Be6 {[%clk 00:38:53]} {[%emt 00:01:07]} Nf6
{[%clk 00:48:57]} {[%emt 00:04:53]} 33. Qf3 {[%clk 00:35:06]} {[%emt 00:03:57]}
Bd2+ {[%clk 00:46:54]} {[%emt 00:02:13]} 34. Kh1 {[%clk 00:34:36]} {[%emt
00:00:39]} Bxe1 {[%clk 00:46:36]} {[%emt 00:00:28]} 35. Rxe1 {[%clk 00:34:44]}
{[%emt 00:00:03]} Qg6 {[%clk 00:44:45]} {[%emt 00:02:01]} 36. b3 {[%clk
00:22:37]} {[%emt 00:12:17]} h6 {[%clk 00:36:52]} {[%emt 00:08:02]} 37. Qg3
{[%clk 00:13:50]} {[%emt 00:08:57]} Qg5 {[%clk 00:26:53]} {[%emt 00:10:10]} 38.
h4 {[%clk 00:11:10]} {[%emt 00:02:50]} Qxg3 {[%clk 00:26:10]} {[%emt 00:00:53]}
39. fxg3 {[%clk 00:11:19]} {[%emt 00:00:02]} Nh5 {[%clk 00:25:32]} {[%emt
00:00:48]} 40. Kg2 {[%clk 00:11:11]} {[%emt 00:00:18]} Ng7 {[%clk 00:25:03]}
{[%emt 00:00:38]} 41. Bd7 {[%clk 00:08:59]} {[%emt 00:02:22]} Nf5 {[%clk
00:23:49]} {[%emt 00:01:24]} 42. Bxf5 {[%clk 00:06:33]} {[%emt 00:02:37]} Rxf5
{[%clk 00:23:41]} {[%emt 00:00:18]} 43. Re4 {[%clk 00:06:09]} {[%emt 00:00:33]}
Kg7 {[%clk 00:22:15]} {[%emt 00:01:36]} 44. Re3 {[%clk 00:02:57]} {[%emt
00:03:23]} Kg6 {[%clk 00:20:44]} {[%emt 00:01:41]} 45. Re4 {[%clk 00:02:54]}
{[%emt 00:00:14]} h5 {[%clk 00:19:47]} {[%emt 00:01:06]} 46. Re3 {[%clk
00:02:30]} {[%emt 00:00:35]} Rf6 {[%clk 00:18:04]} {[%emt 00:01:53]} 47. Re2
{[%clk 00:02:19]} {[%emt 00:00:20]} Kf5 {[%clk 00:17:17]} {[%emt 00:00:56]} 48.
Rf2+ {[%clk 00:02:27]} {[%emt 00:00:03]} Kg6 {[%clk 00:17:20]} {[%emt
00:00:06]} 49. Re2 {[%clk 00:02:36]} {[%emt 00:00:02]} Kf5 {[%clk 00:16:53]}
{[%emt 00:00:37]} 50. Rf2+ {[%clk 00:02:44]} {[%emt 00:00:02]} Kg6 {[%clk
00:16:56]} {[%emt 00:00:06]} 1/2-1/2

[Event "KNSB Bekerfinale"]
[Site "Haarlem, Netherlands"]
[Date "????.??.??"]
[Round "2.7"]
[White "Grutter, Tim"]
[Black "Bosman, Michiel"]
[Result "1/2-1/2"]
[TimeControl "100 minutes + increment 10 seconds"]
[WhiteTitle "FM"]
[BlackTitle "IM"]
[WhiteFideId "1057472"]
[BlackFideId "1000721"]
[WhiteElo "2326"]
[BlackElo "2340"]

1. e4 {[%clk 01:39:38]} {[%emt 00:00:41]} e5 {[%clk 01:39:10]} {[%emt
00:01:11]} 2. Nf3 {[%clk 01:39:31]} {[%emt 00:00:16]} Nc6 {[%clk 01:39:04]}
{[%emt 00:00:16]} 3. Bb5 {[%clk 01:39:07]} {[%emt 00:00:34]} Nf6 {[%clk
01:37:47]} {[%emt 00:01:27]} 4. O-O {[%clk 01:35:55]} {[%emt 00:03:22]} Nxe4
{[%clk 01:34:57]} {[%emt 00:03:01]} 5. Re1 {[%clk 01:35:22]} {[%emt 00:00:43]}
Nd6 {[%clk 01:34:00]} {[%emt 00:01:06]} 6. Nxe5 {[%clk 01:35:16]} {[%emt
00:00:17]} Be7 {[%clk 01:33:54]} {[%emt 00:00:17]} 7. Bf1 {[%clk 01:34:23]}
{[%emt 00:01:03]} Nxe5 {[%clk 01:31:19]} {[%emt 00:02:45]} 8. Rxe5 {[%clk
01:34:27]} {[%emt 00:00:06]} O-O {[%clk 01:31:15]} {[%emt 00:00:13]} 9. Nc3
{[%clk 01:31:02]} {[%emt 00:03:36]} Ne8 {[%clk 01:28:29]} {[%emt 00:02:56]} 10.
d4 {[%clk 01:23:57]} {[%emt 00:07:14]} Bf6 {[%clk 01:26:55]} {[%emt 00:01:44]}
11. Re1 {[%clk 01:23:43]} {[%emt 00:00:24]} d5 {[%clk 01:27:01]} {[%emt
00:00:05]} 12. Bf4 {[%clk 01:21:40]} {[%emt 00:02:13]} c6 {[%clk 01:24:41]}
{[%emt 00:02:30]} 13. Be5 {[%clk 01:18:17]} {[%emt 00:03:32]} Bf5 {[%clk
01:20:30]} {[%emt 00:04:20]} 14. Ne2 {[%clk 01:15:30]} {[%emt 00:02:57]} Nd6
{[%clk 01:11:31]} {[%emt 00:09:10]} 15. Ng3 {[%clk 01:11:52]} {[%emt 00:03:48]}
Bg6 {[%clk 01:10:32]} {[%emt 00:01:09]} 1/2-1/2

[Event "KNSB Bekerfinale"]
[Site "Haarlem, Netherlands"]
[Date "????.??.??"]
[Round "2.8"]
[White "De Jong, Jan-Willem"]
[Black "Boeren, Jurriaan"]
[Result "1-0"]
[TimeControl "100 minutes + increment 10 seconds"]
[WhiteTitle "IM"]
[WhiteFideId "1008641"]
[BlackFideId "1067478"]
[WhiteElo "2398"]
[BlackElo "2178"]

1. d4 {[%clk 01:39:56]} {[%emt 00:00:23]} Nf6 {[%clk 01:40:06]} {[%emt
00:00:14]} 2. c4 {[%clk 01:39:57]} {[%emt 00:00:10]} e6 {[%clk 01:40:12]}
{[%emt 00:00:04]} 3. Nf3 {[%clk 01:38:51]} {[%emt 00:01:15]} d5 {[%clk
01:40:11]} {[%emt 00:00:11]} 4. Nc3 {[%clk 01:37:56]} {[%emt 00:01:05]} a6
{[%clk 01:39:44]} {[%emt 00:00:39]} 5. cxd5 {[%clk 01:32:20]} {[%emt 00:05:45]}
exd5 {[%clk 01:39:50]} {[%emt 00:00:04]} 6. Bg5 {[%clk 01:32:07]} {[%emt
00:00:23]} Be6 {[%clk 01:39:51]} {[%emt 00:00:10]} 7. e3 {[%clk 01:32:03]}
{[%emt 00:00:14]} Nbd7 {[%clk 01:39:37]} {[%emt 00:00:23]} 8. Bd3 {[%clk
01:30:46]} {[%emt 00:01:28]} Bd6 {[%clk 01:39:27]} {[%emt 00:00:21]} 9. Rc1
{[%clk 01:28:46]} {[%emt 00:02:10]} c6 {[%clk 01:37:57]} {[%emt 00:01:39]} 10.
Bh4 {[%clk 01:28:07]} {[%emt 00:00:49]} O-O {[%clk 01:35:01]} {[%emt 00:03:07]}
11. O-O {[%clk 01:22:34]} {[%emt 00:05:42]} Bg4 {[%clk 01:32:28]} {[%emt
00:02:42]} 12. Qc2 {[%clk 01:15:28]} {[%emt 00:07:17]} Qc7 {[%clk 01:26:42]}
{[%emt 00:05:56]} 13. Bg3 {[%clk 01:14:26]} {[%emt 00:01:12]} Bxg3 {[%clk
01:25:26]} {[%emt 00:01:26]} 14. hxg3 {[%clk 01:14:23]} {[%emt 00:00:13]} Rfe8
{[%clk 01:19:43]} {[%emt 00:05:53]} 15. Nd2 {[%clk 01:13:17]} {[%emt 00:01:16]}
Qd6 {[%clk 01:11:07]} {[%emt 00:08:46]} 16. Na4 {[%clk 01:09:00]} {[%emt
00:04:27]} Bh5 {[%clk 01:04:32]} {[%emt 00:06:44]} 17. Rfe1 {[%clk 01:05:58]}
{[%emt 00:03:12]} Bg6 {[%clk 00:56:08]} {[%emt 00:08:35]} 18. Bxg6 {[%clk
01:00:04]} {[%emt 00:06:04]} hxg6 {[%clk 00:55:53]} {[%emt 00:00:24]} 19. b4
{[%clk 00:58:14]} {[%emt 00:02:00]} Re7 {[%clk 00:41:09]} {[%emt 00:14:54]} 20.
Nc5 {[%clk 00:54:36]} {[%emt 00:03:49]} Nb6 {[%clk 00:38:20]} {[%emt 00:02:58]}
21. a4 {[%clk 00:53:16]} {[%emt 00:01:30]} Rae8 {[%clk 00:29:35]} {[%emt
00:08:55]} 22. Rb1 {[%clk 00:49:10]} {[%emt 00:04:16]} Rc7 {[%clk 00:25:15]}
{[%emt 00:04:31]} 23. Qd3 {[%clk 00:42:01]} {[%emt 00:07:19]} g5 {[%clk
00:21:20]} {[%emt 00:04:04]} 24. Qf5 {[%clk 00:36:50]} {[%emt 00:05:21]} g4
{[%clk 00:19:41]} {[%emt 00:01:49]} 25. e4 {[%clk 00:31:03]} {[%emt 00:05:57]}
dxe4 {[%clk 00:08:43]} {[%emt 00:11:08]} 26. Ndxe4 {[%clk 00:31:05]} {[%emt
00:00:07]} Nxe4 {[%clk 00:08:43]} {[%emt 00:00:10]} 27. Nxe4 {[%clk 00:28:21]}
{[%emt 00:02:54]} Qd8 {[%clk 00:07:37]} {[%emt 00:01:16]} 28. Qxg4 {[%clk
00:26:35]} {[%emt 00:01:57]} Nd5 {[%clk 00:07:05]} {[%emt 00:00:42]} 29. Ng5
{[%clk 00:24:39]} {[%emt 00:02:06]} Rce7 {[%clk 00:05:55]} {[%emt 00:01:20]} 30.
Rxe7 {[%clk 00:23:57]} {[%emt 00:00:52]} Qxe7 {[%clk 00:05:57]} {[%emt
00:00:08]} 31. Qh4 {[%clk 00:22:08]} {[%emt 00:01:58]} Nf6 {[%clk 00:05:35]}
{[%emt 00:00:32]} 32. Nf3 {[%clk 00:18:31]} {[%emt 00:03:47]} Qe2 {[%clk
00:03:51]} {[%emt 00:01:53]} 33. d5 {[%clk 00:08:54]} {[%emt 00:09:48]} Qc2
{[%clk 00:02:23]} {[%emt 00:01:38]} 34. Ra1 {[%clk 00:07:38]} {[%emt 00:01:26]}
Ne4 {[%clk 00:02:05]} {[%emt 00:00:28]} 35. dxc6 {[%clk 00:05:38]} {[%emt
00:02:10]} Qxf2+ {[%clk 00:01:39]} {[%emt 00:00:36]} 36. Kh2 {[%clk 00:05:47]}
bxc6 {[%clk 00:01:37]} {[%emt 00:00:13]} 37. Rd1 {[%clk 00:05:44]} {[%emt
00:00:13]} g6 {[%clk 00:00:59]} {[%emt 00:00:47]} 38. Rd8 {[%clk 00:04:22]}
{[%emt 00:01:32]} Rxd8 {[%clk 00:01:01]} {[%emt 00:00:09]} 39. Qxd8+ {[%clk
00:04:30]} {[%emt 00:00:02]} Kg7 {[%clk 00:00:34]} {[%emt 00:00:37]} 40. Qc7
{[%clk 00:03:59]} {[%emt 00:00:40]} Qc2 {[%clk 00:00:18]} {[%emt 00:00:26]} 41.
b5 {[%clk 00:03:41]} {[%emt 00:00:29]} Qxa4 {[%clk 00:00:12]} {[%emt 00:00:15]}
42. b6 {[%clk 00:03:03]} {[%emt 00:00:47]} Nf2 {[%clk 00:00:17]} {[%emt
00:00:06]} 43. Ne5 {[%clk 00:01:45]} {[%emt 00:01:28]} Ng4+ {[%clk 00:00:13]}
{[%emt 00:00:14]} 44. Nxg4 {[%clk 00:01:53]} {[%emt 00:00:02]} Qxg4 {[%clk
00:00:21]} {[%emt 00:00:02]} 45. Qe5+ {[%clk 00:01:46]} {[%emt 00:00:18]} Kh7
{[%clk 00:00:12]} {[%emt 00:00:20]} 46. b7 {[%clk 00:01:33]} {[%emt 00:00:22]}
1-0

[Event "KNSB Bekerfinale"]
[Site "Haarlem, Netherlands"]
[Date "????.??.??"]
[Round "3.5"]
[White "Van Wessel, Rudy"]
[Black "Schoppen, Casper"]
[Result "0-1"]
[TimeControl "100 minutes + increment 10 seconds"]
[WhiteTitle "IM"]
[BlackTitle "GM"]
[WhiteFideId "1004395"]
[BlackFideId "1046730"]
[WhiteElo "2347"]
[BlackElo "2558"]

1. d4 {[%clk 00:03:03]} Nf6 {[%clk 00:03:03]} {[%emt 00:00:02]} 2. Bf4 {[%clk
00:03:04]} Nc6 {[%clk 00:03:00]} {[%emt 00:00:05]} 3. e3 {[%clk 00:03:01]}
{[%emt 00:00:05]} d6 {[%clk 00:03:01]} {[%emt 00:00:02]} 4. h3 {[%clk
00:02:49]} {[%emt 00:00:14]} g6 {[%clk 00:03:01]} {[%emt 00:00:02]} 5. Nf3
{[%clk 00:02:50]} {[%emt 00:00:01]} Bg7 {[%clk 00:03:02]} 6. Be2 {[%clk
00:02:46]} {[%emt 00:00:05]} O-O {[%clk 00:03:02]} {[%emt 00:00:02]} 7. O-O
{[%clk 00:02:43]} {[%emt 00:00:05]} Nh5 {[%clk 00:02:48]} {[%emt 00:00:15]} 8.
Bh2 {[%clk 00:02:42]} {[%emt 00:00:03]} e5 {[%clk 00:02:49]} {[%emt 00:00:02]}
9. g4 {[%clk 00:02:35]} {[%emt 00:00:09]} exd4 {[%clk 00:02:21]} {[%emt
00:00:29]} 10. Nxd4 {[%clk 00:01:33]} {[%emt 00:01:04]} Nf6 {[%clk 00:02:19]}
{[%emt 00:00:04]} 11. Nc3 {[%clk 00:01:34]} Re8 {[%clk 00:01:53]} {[%emt
00:00:27]} 12. Bf3 {[%clk 00:01:31]} {[%emt 00:00:05]} Ne5 {[%clk 00:01:54]}
{[%emt 00:00:01]} 13. Bg2 {[%clk 00:01:31]} {[%emt 00:00:02]} h5 {[%clk
00:01:49]} {[%emt 00:00:06]} 14. g5 {[%clk 00:01:13]} {[%emt 00:00:21]} Nh7
{[%clk 00:01:50]} {[%emt 00:00:01]} 15. h4 {[%clk 00:01:14]} Bg4 {[%clk
00:01:38]} {[%emt 00:00:13]} 16. f3 {[%clk 00:00:52]} {[%emt 00:00:25]} Bd7
{[%clk 00:01:39]} {[%emt 00:00:01]} 17. b3 {[%clk 00:00:45]} {[%emt 00:00:08]}
a6 {[%clk 00:01:11]} {[%emt 00:00:31]} 18. Qd2 {[%clk 00:00:46]} {[%emt
00:00:01]} c5 {[%clk 00:00:57]} {[%emt 00:00:16]} 19. Nde2 {[%clk 00:00:47]}
{[%emt 00:00:01]} Bc6 {[%clk 00:00:56]} {[%emt 00:00:03]} 20. Nf4 {[%clk
00:00:43]} {[%emt 00:00:06]} b5 {[%clk 00:00:49]} {[%emt 00:00:09]} 21. Rad1
{[%clk 00:00:44]} {[%emt 00:00:02]} b4 {[%clk 00:00:49]} 22. Ncd5 {[%clk
00:00:45]} {[%emt 00:00:01]} a5 {[%clk 00:00:47]} {[%emt 00:00:05]} 23. e4
{[%clk 00:00:33]} {[%emt 00:00:14]} a4 {[%clk 00:00:48]} {[%emt 00:00:01]} 24.
Nd3 {[%clk 00:00:34]} Bb5 {[%clk 00:00:44]} {[%emt 00:00:06]} 25. f4 {[%clk
00:00:25]} {[%emt 00:00:11]} Ng4 {[%clk 00:00:44]} {[%emt 00:00:02]} 26. f5
{[%clk 00:00:23]} {[%emt 00:00:04]} Bd4+ {[%clk 00:00:41]} {[%emt 00:00:04]} 27.
Kh1 {[%clk 00:00:24]} {[%emt 00:00:01]} Nxh2 {[%clk 00:00:41]} {[%emt
00:00:02]} 28. Kxh2 {[%clk 00:00:24]} {[%emt 00:00:02]} axb3 {[%clk 00:00:37]}
{[%emt 00:00:05]} 29. axb3 {[%clk 00:00:26]} Ra2 {[%clk 00:00:34]} {[%emt
00:00:05]} 30. Qf4 {[%clk 00:00:12]} {[%emt 00:00:16]} Bxd3 {[%clk 00:00:30]}
{[%emt 00:00:05]} 31. fxg6 {[%clk 00:00:12]} {[%emt 00:00:03]} Be5 {[%clk
00:00:23]} {[%emt 00:00:09]} 32. gxf7+ {[%clk 00:00:13]} Kg7 {[%clk 00:00:24]}
{[%emt 00:00:02]} 33. fxe8=N+ {[%clk 00:00:07]} {[%emt 00:00:08]} Qxe8 {[%clk
00:00:25]} {[%emt 00:00:02]} 34. Qxe5+ {[%clk 00:00:07]} {[%emt 00:00:01]}
Qxe5+ {[%clk 00:00:26]} {[%emt 00:00:01]} 0-1

[Event "KNSB Bekerfinale"]
[Site "Haarlem, Netherlands"]
[Date "????.??.??"]
[Round "3.6"]
[White "Pham, Khoi"]
[Black "Pijpers, Arthur"]
[Result "1-0"]
[TimeControl "100 minutes + increment 10 seconds"]
[WhiteTitle "IM"]
[BlackTitle "IM"]
[WhiteFideId "1054988"]
[BlackFideId "1019554"]
[WhiteElo "2385"]
[BlackElo "2456"]

1. Nf3 {[%clk 00:03:02]} g6 {[%clk 00:03:02]} {[%emt 00:00:02]} 2. d4 {[%clk
00:03:02]} {[%emt 00:00:02]} Nf6 {[%clk 00:03:03]} {[%emt 00:00:01]} 3. c4
{[%clk 00:03:03]} {[%emt 00:00:01]} Bg7 {[%clk 00:03:04]} 4. Nc3 {[%clk
00:03:04]} {[%emt 00:00:01]} d5 {[%clk 00:03:05]} 5. cxd5 {[%clk 00:02:26]}
{[%emt 00:00:40]} Nxd5 {[%clk 00:03:06]} {[%emt 00:00:01]} 6. h4 {[%clk
00:02:24]} {[%emt 00:00:03]} c5 {[%clk 00:02:44]} {[%emt 00:00:25]} 7. h5
{[%clk 00:01:28]} {[%emt 00:00:57]} cxd4 {[%clk 00:01:51]} {[%emt 00:00:55]} 8.
Nxd4 {[%clk 00:01:27]} {[%emt 00:00:04]} Nxc3 {[%clk 00:01:16]} {[%emt
00:00:38]} 9. bxc3 {[%clk 00:01:27]} {[%emt 00:00:01]} Nc6 {[%clk 00:01:17]} 10.
e3 {[%clk 00:01:12]} {[%emt 00:00:17]} e5 {[%clk 00:01:10]} {[%emt 00:00:09]}
11. Nxc6 {[%clk 00:01:05]} {[%emt 00:00:10]} Qxd1+ {[%clk 00:01:10]} {[%emt
00:00:02]} 12. Kxd1 {[%clk 00:01:05]} {[%emt 00:00:02]} bxc6 {[%clk 00:01:12]}
13. e4 {[%clk 00:00:56]} {[%emt 00:00:11]} Be6 {[%clk 00:01:00]} {[%emt
00:00:14]} 14. Ba3 {[%clk 00:00:35]} {[%emt 00:00:24]} Bf8 {[%clk 00:00:37]}
{[%emt 00:00:25]} 15. Bxf8 {[%clk 00:00:35]} {[%emt 00:00:02]} Rxf8 {[%clk
00:00:33]} {[%emt 00:00:05]} 16. Kc2 {[%clk 00:00:30]} {[%emt 00:00:08]} Rb8
{[%clk 00:00:33]} {[%emt 00:00:02]} 17. hxg6 {[%clk 00:00:25]} {[%emt
00:00:06]} hxg6 {[%clk 00:00:33]} {[%emt 00:00:03]} 18. Be2 {[%clk 00:00:24]}
{[%emt 00:00:03]} Ke7 {[%clk 00:00:34]} {[%emt 00:00:02]} 19. a4 {[%clk
00:00:20]} {[%emt 00:00:06]} Bb3+ {[%clk 00:00:31]} {[%emt 00:00:05]} 20. Kd2
{[%clk 00:00:20]} {[%emt 00:00:02]} Rfd8+ {[%clk 00:00:28]} {[%emt 00:00:04]}
21. Ke3 {[%clk 00:00:21]} Be6 {[%clk 00:00:18]} {[%emt 00:00:12]} 22. Rhb1
{[%clk 00:00:21]} {[%emt 00:00:02]} f5 {[%clk 00:00:18]} {[%emt 00:00:02]} 23.
exf5 {[%clk 00:00:14]} {[%emt 00:00:09]} gxf5 {[%clk 00:00:20]} {[%emt
00:00:01]} 24. f4 {[%clk 00:00:14]} {[%emt 00:00:02]} Kf6 {[%clk 00:00:17]}
{[%emt 00:00:05]} 25. Rh1 {[%clk 00:00:13]} {[%emt 00:00:03]} Rh8 {[%clk
00:00:11]} {[%emt 00:00:08]} 26. a5 {[%clk 00:00:07]} {[%emt 00:00:08]} Rxh1
{[%clk 00:00:09]} {[%emt 00:00:03]} 27. Rxh1 {[%clk 00:00:08]} Rb3 {[%clk
00:00:11]} {[%emt 00:00:01]} 28. Rh6+ {[%clk 00:00:09]} {[%emt 00:00:01]} Ke7
{[%clk 00:00:10]} {[%emt 00:00:03]} 29. fxe5 {[%clk 00:00:10]} Rxc3+ {[%clk
00:00:10]} {[%emt 00:00:02]} 30. Kd4 {[%clk 00:00:11]} Ra3 {[%clk 00:00:10]}
{[%emt 00:00:03]} 31. Rh7+ {[%clk 00:00:12]} Kd8 {[%clk 00:00:05]} {[%emt
00:00:07]} 32. Rxa7 {[%clk 00:00:13]} {[%emt 00:00:01]} Ra2 {[%clk 00:00:05]}
{[%emt 00:00:02]} 33. Bf3 {[%clk 00:00:13]} {[%emt 00:00:02]} Rc2 {[%clk
00:00:04]} {[%emt 00:00:03]} 34. a6 {[%clk 00:00:13]} {[%emt 00:00:02]} Rc4+
{[%clk 00:00:04]} {[%emt 00:00:02]} 35. Ke3 {[%clk 00:00:14]} f4+ {[%clk
00:00:05]} {[%emt 00:00:01]} 36. Kd3 {[%clk 00:00:15]} {[%emt 00:00:01]} Rc5
{[%clk 00:00:04]} {[%emt 00:00:03]} 37. Rb7 {[%clk 00:00:16]} {[%emt 00:00:01]}
Ra5 {[%clk 00:00:04]} {[%emt 00:00:02]} 38. a7 {[%clk 00:00:17]} {[%emt
00:00:01]} Bc8 {[%clk 00:00:05]} 39. Rh7 {[%clk 00:00:17]} {[%emt 00:00:02]}
Ra6 {[%clk 00:00:05]} {[%emt 00:00:02]} 40. Bxc6 {[%clk 00:00:17]} {[%emt
00:00:01]} 1-0